[Event "Early-Titled-Tuesday-Blitz-October-17-2023"]
[Site "Chess.com"]
[Date "2023.10.17"]
[Round "11"]
[White "jaskol95"]
[Black "Fan_Of_Chucky"]
[Result "1/2-1/2"]
[WhiteElo "2603"]
[BlackElo "2505"]
[TimeControl "180+1"]
[EndTime "10:10:51 PDT"]
[Termination "Game drawn by repetition"]

1. e4 {[%clk 0:03:00.9]} 1... c5 {[%clk 0:02:54.1]} 2. Nf3 {[%clk 0:03:00.9]}
2... a6 {[%clk 0:02:54.8]} 3. b4 {[%clk 0:02:58]} 3... cxb4 {[%clk 0:02:54]} 4.
d4 {[%clk 0:02:58.2]} 4... d5 {[%clk 0:02:53]} 5. exd5 {[%clk 0:02:54.2]} 5...
Qxd5 {[%clk 0:02:47.2]} 6. c4 {[%clk 0:02:54.9]} 6... bxc3 {[%clk 0:02:47.1]} 7.
Nxc3 {[%clk 0:02:55.4]} 7... Qd8 {[%clk 0:02:48]} 8. Bc4 {[%clk 0:02:48.4]} 8...
e6 {[%clk 0:02:47.9]} 9. O-O {[%clk 0:02:45.1]} 9... Nf6 {[%clk 0:02:45.2]} 10.
d5 {[%clk 0:02:35.8]} 10... exd5 {[%clk 0:02:44]} 11. Re1+ {[%clk 0:02:35.9]}
11... Be7 {[%clk 0:02:40.6]} 12. Nxd5 {[%clk 0:02:18.8]} 12... Nxd5 {[%clk
0:02:36.8]} 13. Bxd5 {[%clk 0:02:19.7]} 13... O-O {[%clk 0:02:33.1]} 14. Bb2
{[%clk 0:02:19.8]} 14... Bf6 {[%clk 0:02:30]} 15. Rb1 {[%clk 0:02:13.2]} 15...
Bxb2 {[%clk 0:02:12.7]} 16. Rxb2 {[%clk 0:02:12.5]} 16... Nc6 {[%clk 0:02:12.2]}
17. Rd2 {[%clk 0:02:05]} 17... Qf6 {[%clk 0:02:04.7]} 18. Qb3 {[%clk 0:01:58]}
18... Ne7 {[%clk 0:01:23.9]} 19. Be4 {[%clk 0:01:42.4]} 19... Ng6 {[%clk
0:01:15.9]} 20. Qb4 {[%clk 0:01:30]} 20... Be6 {[%clk 0:00:38.3]} 21. Qxb7
{[%clk 0:01:27.5]} 21... Rad8 {[%clk 0:00:17.9]} 22. Rxd8 {[%clk 0:01:19.5]}
22... Rxd8 {[%clk 0:00:18.8]} 23. Qxa6 {[%clk 0:01:16.9]} 23... Nf4 {[%clk
0:00:10.6]} 24. g3 {[%clk 0:00:56.7]} 24... Nh3+ {[%clk 0:00:07.4]} 25. Kg2
{[%clk 0:00:57.4]} 25... Ng5 {[%clk 0:00:07]} 26. Qa5 {[%clk 0:00:39.4]} 26...
Nxf3 {[%clk 0:00:04.5]} 27. Bxf3 {[%clk 0:00:39.1]} 27... Rc8 {[%clk 0:00:01.6]}
28. h4 {[%clk 0:00:22.5]} 28... Bh3+ {[%clk 0:00:01.1]} 29. Kxh3 {[%clk
0:00:20.3]} 29... Qxf3 {[%clk 0:00:02]} 30. Qd2 {[%clk 0:00:16.6]} 30... h5
{[%clk 0:00:02]} 31. Qe2 {[%clk 0:00:11.9]} 31... Qa3 {[%clk 0:00:01.5]} 32.
Qxh5 {[%clk 0:00:09.6]} 32... Qxa2 {[%clk 0:00:01.6]} 33. Qf3 {[%clk 0:00:09.3]}
33... Qc4 {[%clk 0:00:01.3]} 34. Re4 {[%clk 0:00:09]} 34... Qc7 {[%clk
0:00:01.4]} 35. Kg2 {[%clk 0:00:07.4]} 35... Qc6 {[%clk 0:00:01.5]} 36. Re3
{[%clk 0:00:06.6]} 36... Qxf3+ {[%clk 0:00:02]} 37. Kxf3 {[%clk 0:00:07]} 37...
Rc6 {[%clk 0:00:02.9]} 38. Kg4 {[%clk 0:00:07.5]} 38... Kh7 {[%clk 0:00:03.3]}
39. f4 {[%clk 0:00:08]} 39... Rc4 {[%clk 0:00:02.9]} 40. Re5 {[%clk 0:00:07.6]}
40... Kg6 {[%clk 0:00:03.1]} 41. Rg5+ {[%clk 0:00:07]} 41... Kf6 {[%clk
0:00:02.9]} 42. Ra5 {[%clk 0:00:07]} 42... Kg6 {[%clk 0:00:02.8]} 43. h5+ {[%clk
0:00:05.7]} 43... Kh7 {[%clk 0:00:02.7]} 44. Kh4 {[%clk 0:00:06.1]} 44... f6
{[%clk 0:00:02.4]} 45. Kh3 {[%clk 0:00:05.9]} 45... Rc1 {[%clk 0:00:01.9]} 46.
Kg4 {[%clk 0:00:06.3]} 46... Rc3 {[%clk 0:00:01.6]} 47. Rb5 {[%clk 0:00:05.7]}
47... Rc4 {[%clk 0:00:02]} 48. Kf5 {[%clk 0:00:05.2]} 48... Rc1 {[%clk
0:00:01.8]} 49. g4 {[%clk 0:00:05.4]} 49... Rf1 {[%clk 0:00:01.2]} 50. Rb7
{[%clk 0:00:04.9]} 50... Rf2 {[%clk 0:00:01.7]} 51. Rb8 {[%clk 0:00:05.3]} 51...
Rf1 {[%clk 0:00:02]} 52. Ke4 {[%clk 0:00:04.1]} 52... Re1+ {[%clk 0:00:02]} 53.
Kf3 {[%clk 0:00:04.4]} 53... Rf1+ {[%clk 0:00:02.3]} 54. Kg3 {[%clk 0:00:04.9]}
54... Rg1+ {[%clk 0:00:02.5]} 55. Kf3 {[%clk 0:00:05.6]} 55... Rf1+ {[%clk
0:00:02.8]} 56. Ke4 {[%clk 0:00:06.3]} 56... Re1+ {[%clk 0:00:03.1]} 57. Kf5
{[%clk 0:00:06.4]} 57... Rc1 {[%clk 0:00:03]} 58. h6 {[%clk 0:00:06.2]} 58...
Rc5+ {[%clk 0:00:01.5]} 59. Ke6 {[%clk 0:00:06.8]} 59... Rc6+ {[%clk 0:00:01.5]}
60. Kd5 {[%clk 0:00:06.9]} 60... Ra6 {[%clk 0:00:01.3]} 61. hxg7 {[%clk
0:00:07.5]} 61... Kxg7 {[%clk 0:00:02.1]} 62. Ke4 {[%clk 0:00:07.9]} 62... Ra4+
{[%clk 0:00:02.1]} 63. Kf3 {[%clk 0:00:08.3]} 63... Ra3+ {[%clk 0:00:02.6]} 64.
Ke4 {[%clk 0:00:07.9]} 64... Ra4+ {[%clk 0:00:03.1]} 65. Kf5 {[%clk 0:00:08]}
65... Ra5+ {[%clk 0:00:03.5]} 66. Ke6 {[%clk 0:00:08.6]} 66... Ra6+ {[%clk
0:00:03.8]} 67. Kd5 {[%clk 0:00:08.3]} 67... Ra5+ {[%clk 0:00:04.2]} 68. Ke4
{[%clk 0:00:09]} 68... Ra4+ {[%clk 0:00:04.6]} 1/2-1/2

[Event "Early-Titled-Tuesday-Blitz-October-17-2023"]
[Site "Chess.com"]
[Date "2023.10.17"]
[Round "11"]
[White "JuniorJumper"]
[Black "Anton_Demchenko"]
[Result "0-1"]
[WhiteElo "2603"]
[BlackElo "2996"]
[TimeControl "180+1"]
[EndTime "10:11:01 PDT"]
[Termination "Anton_Demchenko won by checkmate"]

1. d4 {[%clk 0:02:55.9]} 1... Nf6 {[%clk 0:02:59.9]} 2. c4 {[%clk 0:02:56.3]}
2... d6 {[%clk 0:03:00.5]} 3. Nc3 {[%clk 0:02:55.8]} 3... e5 {[%clk 0:03:00]} 4.
dxe5 {[%clk 0:02:56.7]} 4... dxe5 {[%clk 0:03:00.1]} 5. Qxd8+ {[%clk 0:02:57.6]}
5... Kxd8 {[%clk 0:03:01]} 6. Bg5 {[%clk 0:02:58]} 6... Be6 {[%clk 0:02:59.1]}
7. O-O-O+ {[%clk 0:02:55.5]} 7... Kc8 {[%clk 0:02:58.7]} 8. e3 {[%clk
0:02:38.6]} 8... Nfd7 {[%clk 0:02:57]} 9. Nf3 {[%clk 0:02:37.2]} 9... f6 {[%clk
0:02:57]} 10. Bh4 {[%clk 0:02:37.2]} 10... Nc6 {[%clk 0:02:57.1]} 11. Be2 {[%clk
0:02:32.5]} 11... a5 {[%clk 0:02:53.8]} 12. Nd2 {[%clk 0:02:22.3]} 12... a4
{[%clk 0:02:50.8]} 13. f3 {[%clk 0:02:11.3]} 13... Bb4 {[%clk 0:02:38.3]} 14.
Nd5 {[%clk 0:02:08.3]} 14... Bc5 {[%clk 0:02:35.6]} 15. Ne4 {[%clk 0:02:00.1]}
15... Ba7 {[%clk 0:02:30.4]} 16. Bf2 {[%clk 0:01:58]} 16... Nc5 {[%clk
0:02:14.8]} 17. Nec3 {[%clk 0:01:51.2]} 17... Na5 {[%clk 0:01:58.4]} 18. Nb5
{[%clk 0:01:08.5]} 18... Bxd5 {[%clk 0:01:40.9]} 19. Nxa7+ {[%clk 0:01:08.3]}
19... Rxa7 {[%clk 0:01:41.3]} 20. Rxd5 {[%clk 0:01:08.9]} 20... b6 {[%clk
0:01:31.6]} 21. Rhd1 {[%clk 0:01:01.2]} 21... Nab7 {[%clk 0:01:27.8]} 22. Bf1
{[%clk 0:00:41.7]} 22... Rd8 {[%clk 0:01:13.9]} 23. g3 {[%clk 0:00:38.6]} 23...
Rxd5 {[%clk 0:01:13.4]} 24. Rxd5 {[%clk 0:00:39.3]} 24... e4 {[%clk 0:01:08.3]}
25. Bh3+ {[%clk 0:00:36.4]} 25... Kb8 {[%clk 0:01:08.4]} 26. fxe4 {[%clk
0:00:24.9]} 26... Nxe4 {[%clk 0:01:08.1]} 27. Be1 {[%clk 0:00:25.3]} 27... Nbd6
{[%clk 0:01:03.4]} 28. Bb4 {[%clk 0:00:22.5]} 28... Nc5 {[%clk 0:00:50.9]} 29.
Bxc5 {[%clk 0:00:20.8]} 29... bxc5 {[%clk 0:00:51.8]} 30. Rxc5 {[%clk
0:00:21.5]} 30... Nf7 {[%clk 0:00:40.8]} 31. Rb5+ {[%clk 0:00:19.3]} 31... Rb7
{[%clk 0:00:40.4]} 32. Ra5 {[%clk 0:00:16.7]} 32... Ne5 {[%clk 0:00:38.3]} 33.
Bg2 {[%clk 0:00:15.7]} 33... c6 {[%clk 0:00:38.7]} 34. Rxa4 {[%clk 0:00:13.7]}
34... Kc7 {[%clk 0:00:38.2]} 35. Kc2 {[%clk 0:00:12.4]} 35... Kd6 {[%clk
0:00:32.9]} 36. b3 {[%clk 0:00:12.2]} 36... h5 {[%clk 0:00:31.3]} 37. Ra6 {[%clk
0:00:11.7]} 37... g5 {[%clk 0:00:30.3]} 38. a4 {[%clk 0:00:12.1]} 38... Kc5
{[%clk 0:00:27.6]} 39. Ra8 {[%clk 0:00:09.2]} 39... h4 {[%clk 0:00:28]} 40. gxh4
{[%clk 0:00:09.3]} 40... Rh7 {[%clk 0:00:28.6]} 41. hxg5 {[%clk 0:00:09.2]}
41... Rxh2 {[%clk 0:00:28.5]} 42. gxf6 {[%clk 0:00:09.8]} 42... Rxg2+ {[%clk
0:00:28.7]} 43. Kc3 {[%clk 0:00:10.5]} 43... Rg3 {[%clk 0:00:22.5]} 44. b4+
{[%clk 0:00:10.8]} 44... Kd6 {[%clk 0:00:23]} 45. Kd4 {[%clk 0:00:11.3]} 45...
Rg4+ {[%clk 0:00:21]} 46. e4 {[%clk 0:00:11.9]} 46... Nf3+ {[%clk 0:00:18.7]}
47. Ke3 {[%clk 0:00:12.3]} 47... Ng5 {[%clk 0:00:19.3]} 48. c5+ {[%clk 0:00:11]}
48... Ke6 {[%clk 0:00:18.5]} 49. Ra6 {[%clk 0:00:09.4]} 49... Rxe4+ {[%clk
0:00:18.7]} 50. Kd3 {[%clk 0:00:10]} 50... Kd5 {[%clk 0:00:17.1]} 51. b5 {[%clk
0:00:09.9]} 51... Rf4 {[%clk 0:00:03.5]} 52. b6 {[%clk 0:00:06.6]} 52... Rb4
{[%clk 0:00:02.8]} 53. Kc3 {[%clk 0:00:04.1]} 53... Rc4+ {[%clk 0:00:02.9]} 54.
Kb3 {[%clk 0:00:04.3]} 54... Ne6 {[%clk 0:00:03.5]} 55. b7 {[%clk 0:00:03.7]}
55... Nxc5+ {[%clk 0:00:04]} 56. Ka3 {[%clk 0:00:03.8]} 56... Nxa6 {[%clk
0:00:04.9]} 57. f7 {[%clk 0:00:03.7]} 57... Rf4 {[%clk 0:00:05.5]} 58. a5 {[%clk
0:00:04.3]} 58... Rf3+ {[%clk 0:00:05.3]} 59. Ka4 {[%clk 0:00:04.4]} 59... Rxf7
{[%clk 0:00:06.2]} 60. b8=Q {[%clk 0:00:04.8]} 60... Nxb8 {[%clk 0:00:06.4]} 61.
a6 {[%clk 0:00:05.7]} 61... Nxa6 {[%clk 0:00:06.1]} 62. Ka5 {[%clk 0:00:06.6]}
62... Nc5 {[%clk 0:00:06.6]} 63. Kb6 {[%clk 0:00:07.2]} 63... Rb7+ {[%clk
0:00:06.7]} 64. Ka5 {[%clk 0:00:04.9]} 64... Rb5# {[%clk 0:00:07.5]} 0-1

[Event "Early-Titled-Tuesday-Blitz-October-17-2023"]
[Site "Chess.com"]
[Date "2023.10.17"]
[Round "11"]
[White "MdChess1734"]
[Black "HajiyevKanan"]
[Result "1/2-1/2"]
[WhiteElo "2432"]
[BlackElo "2546"]
[TimeControl "180+1"]
[EndTime "10:11:02 PDT"]
[Termination "Game drawn - insufficient material"]

1. e4 {[%clk 0:03:00.9]} 1... c6 {[%clk 0:02:58]} 2. d4 {[%clk 0:03:00.6]} 2...
d5 {[%clk 0:02:58.9]} 3. Nc3 {[%clk 0:03:01.1]} 3... a6 {[%clk 0:02:59.6]} 4.
Nf3 {[%clk 0:02:54.8]} 4... Bg4 {[%clk 0:02:59]} 5. h3 {[%clk 0:02:52.8]} 5...
Bh5 {[%clk 0:02:59.1]} 6. Be2 {[%clk 0:02:53]} 6... e6 {[%clk 0:02:58.7]} 7. e5
{[%clk 0:02:51.7]} 7... c5 {[%clk 0:02:58.2]} 8. Be3 {[%clk 0:02:48.5]} 8...
Bxf3 {[%clk 0:02:55.7]} 9. Bxf3 {[%clk 0:02:48.1]} 9... cxd4 {[%clk 0:02:56.6]}
10. Bxd4 {[%clk 0:02:46.1]} 10... Nc6 {[%clk 0:02:57.5]} 11. Ne2 {[%clk
0:02:45.7]} 11... Nge7 {[%clk 0:02:52.8]} 12. c3 {[%clk 0:02:44.3]} 12... Qc7
{[%clk 0:02:52.8]} 13. O-O {[%clk 0:02:13.1]} 13... Ng6 {[%clk 0:02:50]} 14. c4
{[%clk 0:02:06.4]} 14... Nxd4 {[%clk 0:02:23.5]} 15. Qxd4 {[%clk 0:01:59.2]}
15... Qxc4 {[%clk 0:02:10.6]} 16. Qxc4 {[%clk 0:01:57.5]} 16... dxc4 {[%clk
0:02:11.5]} 17. Bxb7 {[%clk 0:01:57.7]} 17... Ra7 {[%clk 0:02:05.2]} 18. Bc6+
{[%clk 0:01:57]} 18... Kd8 {[%clk 0:02:04.4]} 19. Rfd1+ {[%clk 0:01:56.9]} 19...
Kc7 {[%clk 0:02:02.2]} 20. Rd7+ {[%clk 0:01:52.3]} 20... Kb6 {[%clk 0:02:01.7]}
21. Rxa7 {[%clk 0:01:48.6]} 21... Kxa7 {[%clk 0:02:02.6]} 22. f4 {[%clk
0:01:48.3]} 22... Bc5+ {[%clk 0:02:01.7]} 23. Kf1 {[%clk 0:01:46.9]} 23... Rc8
{[%clk 0:02:01.7]} 24. Be4 {[%clk 0:01:45.8]} 24... Be3 {[%clk 0:01:56.8]} 25.
g3 {[%clk 0:01:39.8]} 25... Ne7 {[%clk 0:01:55.6]} 26. Rd1 {[%clk 0:01:37.6]}
26... Rc7 {[%clk 0:01:52.8]} 27. Nc3 {[%clk 0:01:37.2]} 27... h5 {[%clk
0:01:49.2]} 28. Ke2 {[%clk 0:01:37]} 28... Bc5 {[%clk 0:01:47.6]} 29. Na4 {[%clk
0:01:35.3]} 29... Bb4 {[%clk 0:01:39.8]} 30. Rd8 {[%clk 0:01:08.5]} 30... Nc8
{[%clk 0:01:26.3]} 31. g4 {[%clk 0:01:08.1]} 31... hxg4 {[%clk 0:01:25.4]} 32.
hxg4 {[%clk 0:01:07.7]} 32... g6 {[%clk 0:01:06]} 33. Ke3 {[%clk 0:01:02.7]}
33... Be7 {[%clk 0:01:02.9]} 34. Re8 {[%clk 0:00:49.7]} 34... Bb4 {[%clk
0:00:51]} 35. Kd4 {[%clk 0:00:47.5]} 35... Ba5 {[%clk 0:00:36.3]} 36. f5 {[%clk
0:00:41.8]} 36... gxf5 {[%clk 0:00:34.8]} 37. gxf5 {[%clk 0:00:42.1]} 37... exf5
{[%clk 0:00:35.5]} 38. Bxf5 {[%clk 0:00:42.4]} 38... Nb6 {[%clk 0:00:31]} 39.
Nc5 {[%clk 0:00:35.5]} 39... c3 {[%clk 0:00:25.8]} 40. bxc3 {[%clk 0:00:34.8]}
40... Bxc3+ {[%clk 0:00:26.5]} 41. Kxc3 {[%clk 0:00:32.8]} 41... Na4+ {[%clk
0:00:22.9]} 42. Kd4 {[%clk 0:00:27.3]} 42... Nxc5 {[%clk 0:00:23.8]} 43. Kd5
{[%clk 0:00:26.8]} 43... Kb6 {[%clk 0:00:17.9]} 44. Rb8+ {[%clk 0:00:19.8]}
44... Rb7 {[%clk 0:00:12.6]} 45. Rxb7+ {[%clk 0:00:19.1]} 45... Nxb7 {[%clk
0:00:13.5]} 46. Bd7 {[%clk 0:00:18.8]} 46... Kc7 {[%clk 0:00:11.8]} 47. Be8
{[%clk 0:00:17.8]} 47... Nd8 {[%clk 0:00:12.4]} 48. Ke4 {[%clk 0:00:15.8]} 48...
Ne6 {[%clk 0:00:12.1]} 49. Kf5 {[%clk 0:00:14.2]} 49... Ng7+ {[%clk 0:00:09.3]}
50. Kf6 {[%clk 0:00:13.9]} 50... Nxe8+ {[%clk 0:00:10.2]} 51. Kxf7 {[%clk
0:00:14.1]} 51... Kd8 {[%clk 0:00:04.2]} 52. a4 {[%clk 0:00:12.3]} 52... a5
{[%clk 0:00:04.4]} 53. e6 {[%clk 0:00:09.3]} 53... Nd6+ {[%clk 0:00:04.1]} 54.
Kf6 {[%clk 0:00:09.6]} 54... Ke8 {[%clk 0:00:03.9]} 55. Ke5 {[%clk 0:00:09.8]}
55... Nc4+ {[%clk 0:00:03.4]} 56. Kd5 {[%clk 0:00:07.4]} 56... Nb2 {[%clk
0:00:03]} 57. Kc5 {[%clk 0:00:05.6]} 57... Nxa4+ {[%clk 0:00:03.5]} 58. Kb5
{[%clk 0:00:05.9]} 58... Nc3+ {[%clk 0:00:04.4]} 59. Kxa5 {[%clk 0:00:06.2]}
59... Nd5 {[%clk 0:00:04.6]} 60. Kb5 {[%clk 0:00:06.6]} 60... Ne7 {[%clk
0:00:05.5]} 61. Kc5 {[%clk 0:00:06.7]} 61... Ng6 {[%clk 0:00:06.4]} 62. Kd6
{[%clk 0:00:07.2]} 62... Ne7 {[%clk 0:00:06.6]} 63. Ke5 {[%clk 0:00:07.1]} 63...
Ng8 {[%clk 0:00:07.5]} 64. Kd6 {[%clk 0:00:07.1]} 64... Ne7 {[%clk 0:00:07.6]}
65. Ke5 {[%clk 0:00:07.5]} 65... Ng8 {[%clk 0:00:08]} 66. Kd6 {[%clk 0:00:08.2]}
66... Nf6 {[%clk 0:00:08.4]} 67. Ke5 {[%clk 0:00:08.9]} 67... Nd7+ {[%clk
0:00:08.7]} 68. exd7+ {[%clk 0:00:08.6]} 68... Kxd7 {[%clk 0:00:09.6]} 1/2-1/2

[Event "Early-Titled-Tuesday-Blitz-October-17-2023"]
[Site "Chess.com"]
[Date "2023.10.17"]
[Round "11"]
[White "Szczor"]
[Black "djokovic74"]
[Result "1-0"]
[WhiteElo "2581"]
[BlackElo "2727"]
[TimeControl "180+1"]
[EndTime "10:11:03 PDT"]
[Termination "Szczor won by checkmate"]

1. d4 {[%clk 0:03:00.9]} 1... e6 {[%clk 0:03:00.1]} 2. c4 {[%clk 0:03:01]} 2...
Nf6 {[%clk 0:03:00.7]} 3. Nf3 {[%clk 0:03:01.5]} 3... Bb4+ {[%clk 0:03:01.2]} 4.
Bd2 {[%clk 0:03:01.2]} 4... Qe7 {[%clk 0:03:00.9]} 5. g3 {[%clk 0:03:00.9]} 5...
Nc6 {[%clk 0:03:01.5]} 6. Bg2 {[%clk 0:03:00.6]} 6... Bxd2+ {[%clk 0:03:01.9]}
7. Qxd2 {[%clk 0:02:59.7]} 7... Ne4 {[%clk 0:03:02.4]} 8. Qc2 {[%clk 0:02:54.4]}
8... Qb4+ {[%clk 0:03:02.5]} 9. Kf1 {[%clk 0:02:55.1]} 9... d5 {[%clk
0:03:02.7]} 10. cxd5 {[%clk 0:02:52.1]} 10... exd5 {[%clk 0:03:02.7]} 11. a3
{[%clk 0:02:49]} 11... Qe7 {[%clk 0:02:53.2]} 12. Nc3 {[%clk 0:02:46.1]} 12...
Nxc3 {[%clk 0:02:53.4]} 13. Qxc3 {[%clk 0:02:44.9]} 13... O-O {[%clk 0:02:53.8]}
14. e3 {[%clk 0:02:42]} 14... Bf5 {[%clk 0:02:47]} 15. h3 {[%clk 0:02:34.1]}
15... Be4 {[%clk 0:02:42.9]} 16. Nd2 {[%clk 0:02:33.4]} 16... Bxg2+ {[%clk
0:02:41.7]} 17. Kxg2 {[%clk 0:02:34.3]} 17... Nd8 {[%clk 0:02:41]} 18. Qc5
{[%clk 0:02:24.5]} 18... Qd7 {[%clk 0:02:37.3]} 19. Nf3 {[%clk 0:02:22.9]} 19...
f6 {[%clk 0:02:29.4]} 20. Qc2 {[%clk 0:02:17.4]} 20... c6 {[%clk 0:02:26.9]} 21.
b4 {[%clk 0:02:16.9]} 21... Nf7 {[%clk 0:02:27]} 22. a4 {[%clk 0:02:10.6]} 22...
Nd6 {[%clk 0:02:25.3]} 23. Nd2 {[%clk 0:02:10.7]} 23... Rae8 {[%clk 0:02:17.3]}
24. Rhb1 {[%clk 0:01:40.6]} 24... a6 {[%clk 0:02:08.6]} 25. a5 {[%clk
0:01:38.9]} 25... Qc7 {[%clk 0:01:57.5]} 26. Qd3 {[%clk 0:01:35.5]} 26... g6
{[%clk 0:01:53.7]} 27. Rc1 {[%clk 0:01:35]} 27... Nf5 {[%clk 0:01:50.3]} 28. Nb3
{[%clk 0:01:19.3]} 28... Re7 {[%clk 0:01:32.1]} 29. Nc5 {[%clk 0:01:18.5]} 29...
Rfe8 {[%clk 0:01:31.4]} 30. Re1 {[%clk 0:01:16.8]} 30... Nd6 {[%clk 0:01:29.2]}
31. Rad1 {[%clk 0:01:14.6]} 31... Nc4 {[%clk 0:01:22.3]} 32. Qc2 {[%clk
0:00:59.2]} 32... Nd6 {[%clk 0:01:12.9]} 33. Re2 {[%clk 0:00:56.8]} 33... Kg7
{[%clk 0:01:03.9]} 34. Rde1 {[%clk 0:00:57]} 34... Nf5 {[%clk 0:01:00.6]} 35.
Qd3 {[%clk 0:00:53.3]} 35... Qd6 {[%clk 0:00:56.3]} 36. Qc3 {[%clk 0:00:46.6]}
36... Qb8 {[%clk 0:00:54.2]} 37. Qd3 {[%clk 0:00:46.7]} 37... Nd6 {[%clk
0:00:53.7]} 38. Qc3 {[%clk 0:00:46.2]} 38... Ne4 {[%clk 0:00:49.5]} 39. Nxe4
{[%clk 0:00:45.8]} 39... dxe4 {[%clk 0:00:45]} 40. Qb3 {[%clk 0:00:43.7]} 40...
Rd7 {[%clk 0:00:44.5]} 41. Rc2 {[%clk 0:00:43.8]} 41... Rd5 {[%clk 0:00:44.5]}
42. Rc5 {[%clk 0:00:42.7]} 42... Red8 {[%clk 0:00:44.7]} 43. Rec1 {[%clk
0:00:42.3]} 43... R8d7 {[%clk 0:00:35.1]} 44. Rxd5 {[%clk 0:00:39.6]} 44... Rxd5
{[%clk 0:00:35.4]} 45. Rc5 {[%clk 0:00:39.7]} 45... Qd8 {[%clk 0:00:35.6]} 46.
Qc2 {[%clk 0:00:37.4]} 46... f5 {[%clk 0:00:30.1]} 47. Rxd5 {[%clk 0:00:29.6]}
47... Qxd5 {[%clk 0:00:30]} 48. Qc5 {[%clk 0:00:20.4]} 48... Qxc5 {[%clk
0:00:28.3]} 49. bxc5 {[%clk 0:00:21.3]} 49... Kf6 {[%clk 0:00:20]} 50. g4 {[%clk
0:00:21.2]} 50... fxg4 {[%clk 0:00:17.5]} 51. hxg4 {[%clk 0:00:21.2]} 51... h5
{[%clk 0:00:17.3]} 52. gxh5 {[%clk 0:00:19.3]} 52... gxh5 {[%clk 0:00:17.6]} 53.
f3 {[%clk 0:00:19.9]} 53... Kf5 {[%clk 0:00:04.8]} 54. Kg3 {[%clk 0:00:20.2]}
54... exf3 {[%clk 0:00:01.7]} 55. Kxf3 {[%clk 0:00:21.1]} 55... h4 {[%clk
0:00:01.9]} 56. e4+ {[%clk 0:00:21.4]} 56... Kg5 {[%clk 0:00:02.1]} 57. d5
{[%clk 0:00:17]} 57... cxd5 {[%clk 0:00:01.6]} 58. exd5 {[%clk 0:00:17.9]} 58...
Kf6 {[%clk 0:00:02.3]} 59. Kg4 {[%clk 0:00:17.7]} 59... Ke5 {[%clk 0:00:02.8]}
60. d6 {[%clk 0:00:18.1]} 60... Ke6 {[%clk 0:00:03.4]} 61. Kxh4 {[%clk
0:00:18.3]} 61... b5 {[%clk 0:00:02]} 62. axb6 {[%clk 0:00:16.1]} 62... a5
{[%clk 0:00:02]} 63. b7 {[%clk 0:00:16.6]} 63... a4 {[%clk 0:00:02.5]} 64. b8=Q
{[%clk 0:00:17.2]} 64... a3 {[%clk 0:00:03.1]} 65. Qb3+ {[%clk 0:00:17.4]} 65...
Kd7 {[%clk 0:00:03.3]} 66. Qxa3 {[%clk 0:00:18]} 66... Kc6 {[%clk 0:00:04.1]}
67. Qb4 {[%clk 0:00:18.4]} 67... Kd7 {[%clk 0:00:04]} 68. Qb7+ {[%clk
0:00:18.4]} 68... Kd8 {[%clk 0:00:04.6]} 69. Qc7+ {[%clk 0:00:18]} 69... Ke8
{[%clk 0:00:05.3]} 70. Qe7# {[%clk 0:00:18.9]} 1-0